bitfinex/quotes_BTCUSD_20220204
["timestamp","ask_amount","ask_price","bid_price","bid_amount"]
[1643959288572,0.38776728,37940.0,37937.0,0.28002067]
[1643959289176,0.38677438,37940.0,37937.0,0.28002067]
[1643959289372,0.38776728,37940.0,37937.0,0.28002067]
[1643959289773,0.38776728,37940.0,37937.0,0.38002067]
[1643959290222,0.38677438,37940.0,37937.0,0.38002067]
[1643959290424,0.38677438,37940.0,37937.0,0.28002067]
[1643959290624,0.38776728,37940.0,37937.0,0.38002067]
[1643959290825,0.38776728,37940.0,37937.0,0.28002067]
[1643959291026,0.61316696,37940.0,37937.0,0.28002067]
[1643959291225,0.61316696,37940.0,37936.0,0.06343992]
[1643959291429,0.61217406,37940.0,37936.0,0.06343992]
[1643959291829,0.61316696,37940.0,37936.0,0.06343992]
[1643959292225,0.61350985,37940.0,37936.0,0.06343992]
[1643959292627,0.61251695,37940.0,37936.0,0.06343992]
[1643959292827,0.61350985,37940.0,37936.0,0.06343992]
[1643959293228,0.22539968,37939.0,37936.0,0.06343992]
[1643959294074,0.22639259,37939.0,37936.0,0.06343992]
[1643959296376,0.22539968,37939.0,37936.0,0.06343992]
[1643959296579,0.22639259,37939.0,37936.0,0.06161592]
[1643959297178,0.00067269,37938.0,37936.0,0.06161592]
[1643959298425,0.22607237,37938.0,37936.0,0.06161592]
[1643959298625,0.00067269,37938.0,37936.0,0.06161592]
[1643959300427,0.21398245,37940.0,37936.0,0.06161592]
[1643959300628,0.21432528,37940.0,37936.0,0.06161592]
[1643959300830,0.21398245,37940.0,37936.0,0.06161592]
[1643959301028,0.21398245,37940.0,37936.0,0.12751792]
[1643959301875,0.21432528,37940.0,37936.0,0.12751792]
[1643959302775,0.00034283,37940.0,37936.0,0.12751792]
[1643959302974,0.00066597,37939.0,37936.0,0.12751792]
[1643959303680,0.00066597,37939.0,37936.0,0.17751792]
[1643959303877,0.00066597,37939.0,37936.0,0.12751792]
[1643959304177,0.00066597,37939.0,37936.0,0.40980489]
[1643959304679,0.00066597,37939.0,37936.0,0.35980489]
[1643959305523,0.00066597,37939.0,37936.0,0.12751792]
[1643959306924,0.00066597,37939.0,37936.0,0.35955618]
[1643959307126,0.00066597,37939.0,37936.0,0.12751792]
[1643959308227,0.00066597,37939.0,37936.0,0.12599093]
[1643959309778,0.05,37938.0,37935.0,0.05]
[1643959309981,0.05,37938.0,37933.0,0.11689811]
[1643959310178,0.05,37938.0,37936.0,0.10453268]
[1643959310379,0.05034283,37938.0,37936.0,0.17043468]
[1643959310781,0.05,37938.0,37936.0,0.17043468]
[1643959311378,0.05,37938.0,37936.0,0.14943468]
[1643959312484,0.05,37938.0,37933.0,0.16689981]
[1643959312485,0.27534375,37938.0,37933.0,0.16689981]
[1643959312732,0.27534375,37938.0,37933.0,0.00099381]
[1643959312733,0.4,37934.0,37933.0,0.00099381]
[1643959312932,0.05,37934.0,37933.0,0.00099381]
[1643959313232,0.05,37934.0,37930.0,0.1]
[1643959313432,0.05,37934.0,37932.0,0.00099381]
[1643959313633,0.22534375,37937.0,37932.0,0.00099381]
[1643959313832,0.22534375,37937.0,37935.0,0.07683977]
[1643959314033,0.05,37936.0,37935.0,0.07683977]
[1643959314638,0.24388644,37937.0,37935.0,0.07683977]
[1643959315036,0.24388644,37937.0,37935.0,0.07617373]
[1643959315234,0.24388644,37937.0,37932.0,0.05307653]
[1643959315434,0.24422927,37937.0,37933.0,0.07693544]
[1643959315734,0.05,37936.0,37933.0,0.12693544]
[1643959316775,0.22568658,37937.0,37933.0,0.12693544]
[1643959316976,0.22534375,37937.0,37933.0,0.12693544]
[1643959317175,0.05,37936.0,37933.0,0.12693544]
[1643959317375,0.22568658,37937.0,37933.0,0.12693544]
[1643959317579,0.00034283,37937.0,37933.0,0.12693544]
[1643959317774,0.27568658,37938.0,37933.0,0.17693544]
[1643959318175,0.2766795,37938.0,37933.0,0.17693544]
[1643959318875,0.22534375,37937.0,37933.0,0.17693544]
[1643959319075,0.22568658,37937.0,37933.0,0.17693544]
[1643959319276,0.22568658,37937.0,37934.0,0.13180979]
[1643959319475,0.22534375,37937.0,37934.0,0.13180979]
[1643959319676,0.22534375,37937.0,37934.0,0.18180979]
[1643959320334,0.27568658,37938.0,37935.0,0.05]
[1643959320531,0.27633667,37938.0,37935.0,0.05]
[1643959321533,0.05,37937.0,37935.0,0.05]
[1643959321735,0.2766795,37938.0,37935.0,0.27940471]
[1643959321932,0.2766795,37938.0,37935.0,0.05]
[1643959322132,0.05,37936.0,37935.0,0.05]
[1643959322534,0.05,37936.0,37933.0,0.36401452]
[1643959322737,0.05,37936.0,37933.0,0.41401452]
[1643959323133,0.05034283,37937.0,37933.0,0.41401452]
[1643959323333,0.22633667,37938.0,37933.0,0.41401452]
[1643959323734,0.2266795,37938.0,37933.0,0.41401452]
[1643959323982,0.22568658,37938.0,37933.0,0.41401452]
[1643959324180,0.05,37937.0,37933.0,0.41401452]
[1643959324779,0.00034283,37937.0,37933.0,0.17693544]
[1643959324981,0.00034283,37937.0,37934.0,0.23002909]
[1643959325179,0.05,37938.0,37934.0,0.29593409]
[1643959325382,0.05099292,37938.0,37934.0,0.29593409]
[1643959326179,0.05099292,37938.0,37935.0,0.0527]
[1643959326180,0.00099292,37938.0,37935.0,0.0527]
[1643959326383,0.00034283,37940.0,37936.0,0.26882098]
[1643959326584,0.00099293,37938.0,37937.0,0.0527]
[1643959326780,0.00099293,37938.0,37937.0,0.37747251]
[1643959327184,0.00099293,37938.0,37937.0,0.47747251]
[1643959327480,0.00034283,37941.0,37937.0,0.74989378]
[1643959327731,0.00099291,37939.0,37937.0,1.08038649]
[1643959327956,0.00099291,37939.0,37937.0,1.01346747]
[1643959328132,0.00099291,37939.0,37938.0,0.31882098]
[1643959328332,0.00099291,37939.0,37938.0,0.52152098]
[1643959328532,0.00099291,37939.0,37938.0,0.72022669]
[1643959328732,0.00034283,37941.0,37938.0,0.78611969]
[1643959328935,0.05,37942.0,37940.0,0.10112808]
[1643959329134,0.00034283,37944.0,37941.0,0.05]
[1643959329335,0.00034283,37945.0,37943.0,0.05]
[1643959329734,0.02355747,37946.0,37943.0,0.05]
[1643959330035,0.01958648,37946.0,37942.0,0.1]
[1643959330234,0.02051229,37946.0,37945.0,0.34505496]
[1643959330639,0.00092581,37946.0,37945.0,0.44505496]
[1643959330837,0.00092581,37946.0,37945.0,0.39505496]
[1643959331037,0.00092581,37946.0,37945.0,0.34505496]
[1643959331237,0.42034283,37948.0,37947.0,0.07471978]
[1643959331506,0.42034283,37948.0,37947.0,0.12471978]
[1643959331507,0.766655,37948.0,37947.0,0.12471978]
[1643959333403,0.42,37948.0,37947.0,0.40332372]
[1643959333804,0.42,37948.0,37947.0,0.45332372]
[1643959334605,0.42,37948.0,37947.0,0.40332372]
[1643959334802,0.42,37948.0,37947.0,0.45332372]
[1643959335635,0.42,37948.0,37947.0,0.40332372]
[1643959335835,0.42,37948.0,37947.0,0.17471978]
[1643959336834,0.42,37948.0,37947.0,0.12471978]
[1643959337035,0.42,37948.0,37947.0,0.17471978]
[1643959337235,0.01979989,37948.0,37947.0,0.17471978]
[1643959337637,0.01979989,37948.0,37947.0,0.12471978]
[1643959337841,0.01979989,37948.0,37947.0,0.40598844]
[1643959339777,0.01979989,37948.0,37947.0,0.13673807]
[1643959339975,0.06979989,37948.0,37947.0,0.13673807]
[1643959340782,0.06979989,37948.0,37947.0,0.05]
[1643959341178,0.06979989,37948.0,37946.0,0.05]
[1643959341978,0.06979989,37948.0,37947.0,0.07751101]
[1643959342178,0.06979989,37948.0,37947.0,0.12751101]
[1643959344842,0.01979989,37948.0,37947.0,0.12751101]
[1643959346149,0.01979989,37948.0,37947.0,0.35819253]
[1643959347178,0.01979989,37948.0,37947.0,0.12751101]
[1643959349280,0.01979989,37948.0,37947.0,0.35842758]
[1643959349979,0.01979989,37948.0,37947.0,0.12751101]
[1643959353447,0.00789989,37948.0,37947.0,0.12751101]
[1643959354477,0.05789989,37948.0,37947.0,0.12751101]
[1643959355478,0.00789989,37948.0,37947.0,0.12751101]
[1643959356080,0.00789989,37948.0,37947.0,0.35921824]
[1643959356279,0.00789989,37948.0,37947.0,0.12751101]
[1643959357481,0.05789989,37948.0,37947.0,0.12751101]
[1643959357729,0.00789989,37948.0,37947.0,0.12751101]
[1643959358631,0.00093,37949.0,37948.0,0.5]
[1643959358830,0.05,37951.0,37950.0,0.27846811]
[1643959359231,0.02145312,37953.0,37950.0,0.37846811]
[1643959359429,0.00034275,37952.0,37950.0,0.37846811]
[1643959359628,0.00034275,37952.0,37951.0,0.22412433]
[1643959359830,0.07145312,37953.0,37951.0,0.22412433]
[1643959360229,0.07238307,37953.0,37951.0,0.22412433]
[1643959360632,0.05092995,37953.0,37951.0,0.22412433]
[1643959360830,0.05,37952.0,37951.0,0.22412433]
[1643959362083,0.05,37952.0,37950.0,0.44434711]
[1643959362283,0.05034275,37952.0,37950.0,0.44434711]
[1643959362684,0.05,37952.0,37950.0,0.44434711]
[1643959362884,0.05034275,37952.0,37950.0,0.44434711]
[1643959363685,0.42,37956.0,37950.0,0.44434711]
[1643959363885,0.00092996,37953.0,37950.0,0.37846811]
[1643959364084,0.00092996,37953.0,37950.0,0.42846811]
[1643959364288,0.00092996,37953.0,37952.0,0.05]
[1643959364888,0.42,37956.0,37953.0,0.09413987]
[1643959365088,0.42,37956.0,37954.0,0.05]
[1643959365329,0.42,37956.0,37953.0,0.19413987]
[1643959365528,0.42,37956.0,37954.0,0.05]
[1643959366935,0.42,37956.0,37953.0,0.19413987]
[1643959367332,0.346655,37955.0,37953.0,0.09413987]
[1643959367731,0.42092992,37956.0,37953.0,0.09413987]
[1643959368332,0.42,37956.0,37953.0,0.14413987]
[1643959368534,0.42,37956.0,37953.0,0.19413987]
[1643959368732,0.42092992,37956.0,37953.0,0.24413987]
[1643959369679,0.85,37955.0,37954.0,0.075147]
[1643959369878,1.246655,37955.0,37946.0,0.131759]
[1643959370080,1.246655,37955.0,37943.0,0.2761]
[1643959370081,0.05,37948.0,37943.0,0.2761]
[1643959370279,1.18141405,37955.0,37941.0,0.13178227]
[1643959370280,0.05,37944.0,37941.0,0.13178227]
[1643959370480,0.05,37942.0,37937.0,0.065903]
[1643959370680,0.05,37942.0,37938.0,0.21126721]
[1643959370881,0.05,37942.0,37941.0,0.27271451]
[1643959371078,0.05,37942.0,37941.0,0.36117424]
[1643959372083,0.05,37942.0,37941.0,0.41117424]
[1643959372729,0.05,37942.0,37941.0,0.37271451]
[1643959373337,0.05,37942.0,37937.0,0.19769726]
[1643959373532,0.05,37938.0,37937.0,0.19769726]
[1643959373831,0.05,37938.0,37937.0,0.61768215]
[1643959374033,0.05,37939.0,37937.0,0.68358115]
[1643959374334,0.05,37942.0,37937.0,0.59633048]
[1643959374531,0.05,37942.0,37940.0,0.28050863]
[1643959374737,0.05,37942.0,37940.0,0.38050863]
[1643959374932,0.05,37942.0,37936.0,0.21127921]
[1643959375133,0.05,37937.0,37936.0,0.21127921]
[1643959375332,0.05,37937.0,37936.0,0.26127921]
[1643959375532,0.05,37937.0,37934.0,0.13180408]
[1643959375733,0.05,37935.0,37934.0,0.13180408]
[1643959376137,0.05,37935.0,37934.0,0.30451088]
[1643959376487,0.05,37935.0,37934.0,0.40303706]
[1643959376882,0.05,37935.0,37934.0,0.50303706]
[1643959377285,0.60511608,37943.0,37934.0,0.50303706]
[1643959377483,0.50999832,37943.0,37934.0,0.50303706]
[1643959377683,0.05,37937.0,37934.0,0.50303706]
[1643959378083,0.05,37935.0,37934.0,0.45303706]
[1643959378282,0.05,37935.0,37934.0,0.45403205]
[1643959379282,0.05,37935.0,37934.0,0.45303706]
[1643959391039,0.05,37935.0,37934.0,0.14852618]
[1643959396035,0.0498948,37935.0,37934.0,0.14852618]
[1643959397234,0.0488948,37935.0,37934.0,0.14852618]
[1643959399880,0.0488948,37935.0,37933.0,0.00093353]
[1643959400079,0.0488948,37935.0,37934.0,0.10042978]
[1643959401083,0.0488948,37935.0,37934.0,0.15042978]
[1643959401684,0.0488948,37935.0,37934.0,0.05]
[1643959401882,0.1015948,37935.0,37933.0,0.00093353]
[1643959402085,0.1015948,37935.0,37931.0,0.05]
[1643959402381,0.346655,37934.0,37933.0,0.00093353]
[1643959402582,0.399355,37934.0,37933.0,0.00093353]
[1643959403029,0.399355,37934.0,37933.0,0.09521798]
[1643959403234,0.399355,37934.0,37933.0,0.14428445]
[1643959403432,0.4482498,37934.0,37933.0,0.14428445]
[1643959403831,0.4482498,37934.0,37933.0,0.09428445]
[1643959404434,0.4482498,37934.0,37929.0,0.05018789]
[1643959404635,0.1015948,37934.0,37932.0,0.00093354]
[1643959405337,0.25991753,37933.0,37932.0,0.00093354]
[1643959405536,0.31261753,37933.0,37932.0,0.00093354]
[1643959405740,0.31261753,37933.0,37930.0,0.07751348]
[1643959405936,0.31261753,37933.0,37931.0,0.00093355]
[1643959406580,0.0488948,37932.0,37931.0,0.00093355]
[1643959406783,0.1015948,37932.0,37930.0,0.07751348]
[1643959406980,0.1015948,37932.0,37930.0,0.07844704]
[1643959407180,0.04737291,37931.0,37930.0,0.07844704]
[1643959407381,0.10007291,37931.0,37930.0,0.07844704]
[1643959407780,0.10007291,37931.0,37930.0,0.12844704]
[1643959407981,0.10007291,37931.0,37930.0,0.12751348]
[1643959410332,2.25981405,37944.0,37930.0,0.12751348]
[1643959410333,0.18162883,37939.0,37930.0,0.12751348]
[1643959410531,0.0527,37938.0,37930.0,0.12751348]
[1643959410731,0.399355,37937.0,37930.0,0.12751348]
[1643959410936,0.0527,37936.0,37930.0,0.12751348]
[1643959411332,0.20059857,37935.0,37930.0,0.12751348]
[1643959411535,0.0527,37934.0,37930.0,0.12751348]
[1643959411933,0.0527,37934.0,37931.0,0.00093355]
[1643959412935,0.0527,37934.0,37930.0,0.12751348]
[1643959413136,0.0527,37934.0,37931.0,0.00093355]
[1643959414004,0.0527,37934.0,37930.0,0.12751348]
[1643959414192,0.0527,37934.0,37931.0,0.00093355]
[1643959415195,0.0527,37934.0,37930.0,0.12751348]
[1643959415393,0.0527,37934.0,37931.0,0.00093355]
[1643959416396,0.0527,37934.0,37930.0,0.12751348]
[1643959416596,0.0527,37934.0,37931.0,0.00093355]
[1643959417598,0.0527,37934.0,37930.0,0.12751348]
[1643959417831,0.0527,37934.0,37931.0,0.00093355]
[1643959420034,0.0527,37934.0,37930.0,0.12751348]
[1643959420235,0.0527,37934.0,37931.0,0.00093355]
[1643959420538,0.346655,37933.0,37931.0,0.00093355]
[1643959420736,0.8027,37932.0,37931.0,0.00093355]
[1643959421036,1.149355,37932.0,37931.0,0.00093355]
[1643959421238,1.149355,37932.0,37927.0,0.00018789]
[1643959421496,0.22511335,37929.0,37927.0,0.09394251]
[1643959421680,0.0527,37928.0,37927.0,0.0941304]
[1643959422680,0.0527,37928.0,37927.0,0.1441304]
[1643959422878,0.0527,37928.0,37927.0,0.0941304]
[1643959423078,0.0527,37928.0,37927.0,0.1441304]
[1643959424482,0.0527,37928.0,37927.0,0.37292508]
[1643959424683,0.0527,37928.0,37927.0,0.1441304]
[1643959425335,0.25329857,37935.0,37927.0,0.1441304]
[1643959425635,0.346655,37934.0,37927.0,0.1941304]
[1643959426037,0.2287,37936.0,37927.0,0.1941304]
[1643959426038,0.346655,37933.0,37932.0,0.30610694]
[1643959426335,0.2287,37936.0,37932.0,0.6469403]
[1643959426537,0.24973678,37940.0,37933.0,0.09272142]
[1643959426538,0.50708807,37940.0,37933.0,0.09272142]
[1643959426735,0.346655,37939.0,37933.0,0.09272142]
[1643959426934,0.346655,37939.0,37933.0,0.14183431]
[1643959427535,0.346655,37939.0,37934.0,0.00093351]
[1643959427734,0.346655,37939.0,37934.0,0.01433873]
[1643959427933,0.346655,37939.0,37936.0,0.04910937]
[1643959428133,0.346655,37939.0,37937.0,0.01340441]
[1643959428539,0.57200605,37939.0,37937.0,0.01340441]
[1643959428736,0.57200605,37939.0,37936.0,0.00093349]
[1643959428737,0.48482541,37938.0,37936.0,0.00093349]
[1643959429006,2.10882936,37937.0,37936.0,0.00093349]
[1643959429201,0.399355,37937.0,37936.0,0.00093349]
[1643959429397,0.499355,37937.0,37936.0,0.00093349]
[1643959429596,0.499355,37937.0,37927.0,0.00018789]
[1643959429796,0.20267149,37931.0,37926.0,0.00253634]
[1643959429997,0.20267149,37931.0,37928.0,0.10022246]
[1643959430196,0.346658,37932.0,37928.0,0.10022246]
[1643959430397,0.0527,37933.0,37928.0,0.15022246]
[1643959430799,0.346658,37932.0,37928.0,0.10022246]
[1643959430999,0.346658,37932.0,37929.0,0.00093358]
[1643959431201,0.396658,37932.0,37929.0,0.00112147]
[1643959431902,0.24358961,37931.0,37929.0,0.00112147]
[1643959432098,0.24358961,37931.0,37929.0,0.00018789]
[1643959432299,0.24358961,37931.0,37929.0,0.00093497]
[1643959432729,0.24358961,37931.0,37929.0,0.00112286]
[1643959433131,0.23583724,37931.0,37929.0,0.00112286]
[1643959433331,0.23583724,37931.0,37929.0,0.00018789]
[1643959433630,0.23583724,37931.0,37928.0,0.10115744]
[1643959434433,0.23583724,37931.0,37928.0,0.10022246]
[1643959434631,0.23583724,37931.0,37928.0,0.10115745]
[1643959435031,0.19581722,37931.0,37928.0,0.10115745]
[1643959435631,0.19581722,37931.0,37928.0,0.10022246]
[1643959435831,0.19581722,37931.0,37928.0,0.10115596]
[1643959436886,0.19581722,37931.0,37928.0,0.10022246]
[1643959437089,0.19581722,37931.0,37928.0,0.10115596]
[1643959437885,0.346658,37932.0,37928.0,0.10115596]
[1643959438085,0.346658,37932.0,37928.0,0.10022246]
[1643959438287,0.346658,37932.0,37928.0,0.15115596]
[1643959438887,0.26213212,37931.0,37928.0,0.15115596]
[1643959439087,0.26213212,37931.0,37928.0,0.10115596]
[1643959439288,0.26213212,37931.0,37918.0,0.1318544]
[1643959439289,1.95560946,37930.0,37918.0,0.1318544]
[1643959439491,0.25,37926.0,37921.0,0.00373506]
[1643959439697,0.25,37926.0,37921.0,0.00263506]
[1643959439698,0.64521361,37925.0,37921.0,0.00263506]
[1643959439888,0.46972058,37925.0,37921.0,0.00263506]
[1643959440089,0.77822407,37925.0,37921.0,0.00263506]
[1643959440332,0.46179531,37925.0,37921.0,0.00263506]
[1643959440538,0.46179531,37925.0,37919.0,0.26688772]
[1643959440539,0.0245862,37925.0,37922.0,0.05]
[1643959440737,0.02036258,37925.0,37924.0,0.14467198]
[1643959440934,0.02036258,37925.0,37924.0,0.44133698]
[1643959441236,0.02036258,37925.0,37919.0,0.26688772]
[1643959441237,0.02036258,37925.0,37920.0,0.05]
[1643959441435,0.02036258,37925.0,37921.0,0.346665]
[1643959441634,0.02036258,37925.0,37922.0,0.05]
[1643959441833,0.02036258,37925.0,37923.0,0.346665]
[1643959442237,0.02036258,37925.0,37924.0,0.8920309]
[1643959442435,0.02036258,37925.0,37924.0,0.74430536]
[1643959442635,0.02036258,37925.0,37924.0,0.4886959]
[1643959443235,0.02036258,37925.0,37924.0,0.4386959]
[1643959443990,0.02036258,37925.0,37924.0,0.4886959]
[1643959444181,0.02036258,37925.0,37924.0,0.4386959]
[1643959444981,0.00099505,37926.0,37924.0,0.4386959]
[1643959445181,0.00099505,37926.0,37925.0,0.346665]
[1643959445380,0.54093944,37931.0,37925.0,0.30112296]
[1643959445580,0.00099505,37927.0,37925.0,0.30112296]
[1643959446181,0.00099505,37927.0,37925.0,0.35112296]
[1643959446582,0.346665,37930.0,37925.0,0.35112296]
[1643959446783,0.00099503,37928.0,37925.0,0.35112296]
[1643959447735,0.45499303,37932.0,37925.0,0.35112296]
[1643959447932,0.00099502,37928.0,37925.0,0.35112296]
[1643959448133,0.00099502,37928.0,37926.0,0.346665]
[1643959448833,0.22549303,37933.0,37926.0,0.346665]
[1643959449034,0.59665332,37932.0,37931.0,0.25861126]
[1643959449235,0.59665332,37932.0,37925.0,0.1]
[1643959450235,0.000995,37930.0,37923.0,0.2967]
[1643959450436,0.000995,37930.0,37928.0,0.22675091]
[1643959450737,0.346665,37929.0,37928.0,0.27675091]
[1643959452490,0.346665,37929.0,37928.0,0.35893934]
[1643959452984,0.1185913,37929.0,37928.0,1.35893934]
[1643959453189,0.000995,37930.0,37928.0,1.07840008]
[1643959453386,0.000995,37930.0,37929.0,1.00463766]
[1643959453584,0.000995,37930.0,37929.0,0.80347262]
[1643959453787,0.23478285,37939.0,37929.0,0.60681962]
[1643959453985,0.346653,37939.0,37936.0,0.2725631]
[1643959454384,0.346653,37939.0,37936.0,0.4110098]
[1643959454583,0.346653,37939.0,37936.0,0.3225631]
[1643959454786,0.34518082,37939.0,37936.0,0.3225631]
[1643959455232,0.3461757,37939.0,37936.0,0.3225631]
[1643959456133,0.34518082,37939.0,37936.0,0.3225631]
[1643959456333,0.3461757,37939.0,37936.0,0.3225631]
[1643959457233,0.34518082,37939.0,37936.0,0.3225631]
[1643959457434,0.3461757,37939.0,37936.0,0.3225631]
[1643959458134,0.3461757,37939.0,37937.0,0.05]
[1643959458335,0.3461757,37939.0,37938.0,0.21475788]
[1643959458535,0.22549303,37945.0,37939.0,0.229798]
[1643959458735,0.28141405,37948.0,37941.0,0.05]
[1643959458736,0.22947191,37946.0,37941.0,0.05]
[1643959458990,0.00397888,37946.0,37942.0,0.23141428]
[1643959459183,0.31942845,37949.0,37942.0,0.23141428]
[1643959459383,0.17623464,37948.0,37942.0,0.28141428]
[1643959459783,0.05,37944.0,37943.0,0.26906985]
[1643959459982,0.396608,37944.0,37943.0,0.26906985]
[1643959460185,0.05,37944.0,37943.0,0.26906985]
[1643959460382,0.396608,37944.0,37943.0,0.26906985]
[1643959460883,0.396608,37944.0,37943.0,0.26406985]
[1643959461183,0.05,37944.0,37943.0,0.31406985]
[1643959461783,0.396608,37944.0,37943.0,0.31406985]
[1643959461984,0.05,37944.0,37943.0,0.31406985]
[1643959462183,0.396608,37944.0,37943.0,0.31406985]
[1643959462484,0.05,37944.0,37943.0,0.31406985]
[1643959464737,0.01932536,37948.0,37943.0,0.31406985]
[1643959464938,0.05,37944.0,37943.0,0.66067785]
[1643959466237,0.05,37944.0,37943.0,0.74018304]
[1643959466491,0.05,37944.0,37943.0,0.66067785]
[1643959467284,0.00099771,37948.0,37943.0,0.66067785]
[1643959467585,0.346608,37947.0,37944.0,0.06589533]
[1643959468187,0.396608,37947.0,37944.0,0.06589533]
[1643959468385,0.396608,37947.0,37944.0,0.06689318]
[1643959469188,0.346608,37947.0,37944.0,0.06689318]
[1643959469388,0.05,37945.0,37944.0,0.06589533]
[1643959469589,0.05,37945.0,37944.0,0.06689318]
[1643959470448,0.05,37945.0,37944.0,0.06589533]
[1643959470652,0.25931651,37948.0,37944.0,0.06589533]
[1643959470854,0.346608,37947.0,37944.0,0.06589533]
[1643959471047,0.05,37945.0,37944.0,0.06589533]
[1643959471851,0.396608,37945.0,37944.0,0.06589533]
[1643959472049,0.269451,37945.0,37944.0,0.06589533]
[1643959472249,0.05,37945.0,37944.0,0.06589533]
[1643959474188,0.05,37945.0,37938.0,0.263582]
[1643959474386,0.1,37946.0,37943.0,0.00099787]
[1643959474587,1.25,37944.0,37943.0,0.00099787]
[1643959474787,0.05,37944.0,37943.0,0.00099787]
[1643959475187,0.66133742,37944.0,37943.0,0.00099787]
[1643959475389,0.66133742,37944.0,37940.0,0.065908]
[1643959475588,0.346608,37943.0,37942.0,0.00099788]
[1643959475791,0.396608,37943.0,37942.0,0.00099788]
[1643959478539,0.396608,37943.0,37940.0,0.065908]
[1643959478739,0.05,37943.0,37940.0,0.065908]
[1643959478939,0.05,37941.0,37940.0,0.065908]
[1643959479141,0.05,37941.0,37940.0,0.41345963]
[1643959480040,0.05,37941.0,37940.0,0.412516]
[1643959482790,0.05,37941.0,37940.0,0.462516]
[1643959483495,0.1957922,37947.0,37940.0,0.462516]
[1643959483696,0.36668817,37946.0,37945.0,0.02102556]
[1643959483892,1.45,37945.0,37939.0,0.00088463]
[1643959484091,0.399308,37944.0,37939.0,0.00088463]
[1643959484291,0.499308,37944.0,37939.0,0.00088463]
[1643959484492,0.5,37943.0,37939.0,0.00088463]
[1643959484691,0.21105422,37941.0,37939.0,0.00088463]
[1643959484891,0.346608,37940.0,37934.0,0.05]
[1643959485092,0.10176824,37935.0,37934.0,0.05]
[1643959485335,0.26375422,37941.0,37934.0,0.396608]
[1643959485536,0.346608,37940.0,37934.0,0.05]
[1643959485736,0.346608,37940.0,37934.0,0.115918]
[1643959486141,0.346608,37940.0,37934.0,0.165918]
[1643959486338,0.346608,37940.0,37935.0,0.00088866]
[1643959486540,0.0527,37941.0,37935.0,0.00088866]
[1643959487038,0.346608,37940.0,37935.0,0.00088866]
[1643959487238,0.346608,37940.0,37934.0,0.165918]
[1643959487438,0.27326898,37941.0,37936.0,0.00088821]
[1643959487639,0.346608,37940.0,37936.0,0.00088821]
[1643959488539,0.346608,37940.0,37934.0,0.281835]
[1643959488745,0.346608,37940.0,37936.0,0.00088793]
[1643959489686,0.346608,37940.0,37934.0,0.231835]
[1643959489986,0.346608,37940.0,37936.0,0.00088793]
[1643959490885,0.346608,37940.0,37935.0,0.29936314]
[1643959491087,0.346608,37940.0,37936.0,0.00088797]
[1643959492188,0.346608,37940.0,37935.0,0.34936314]
[1643959492387,0.346608,37940.0,37936.0,0.00088802]
[1643959493236,0.346608,37940.0,37935.0,0.34936314]
[1643959493435,0.346608,37940.0,37936.0,0.00088802]
[1643959494435,0.346608,37940.0,37935.0,0.34936314]
[1643959494637,0.346608,37940.0,37936.0,0.00088802]
[1643959495440,0.346608,37940.0,37938.0,0.05]
[1643959495640,0.346608,37940.0,37938.0,0.115908]
[1643959495838,0.346608,37940.0,37938.0,0.165908]
[1643959496038,0.346608,37940.0,37938.0,0.115908]
[1643959496587,0.346608,37940.0,37938.0,0.165908]
[1643959496787,0.346608,37940.0,37939.0,0.05]
[1643959497186,0.346608,37940.0,37938.0,0.065908]
[1643959497187,0.346608,37940.0,37938.0,0.115908]
[1643959497989,0.58624322,37940.0,37938.0,0.115908]
[1643959498288,0.58624322,37940.0,37938.0,0.165908]
[1643959498893,0.346608,37940.0,37938.0,0.165908]
[1643959499691,0.346608,37940.0,37938.0,0.115908]
[1643959500538,0.5,37939.0,37938.0,0.115908]
[1643959500736,0.5,37939.0,37938.0,0.165908]
[1643959501542,0.346608,37940.0,37938.0,0.115908]
[1643959501736,0.346608,37940.0,37939.0,0.05]
[1643959503537,0.22565399,37941.0,37939.0,0.05]
[1643959503737,0.22565399,37941.0,37938.0,0.39118438]
[1643959503994,0.34532898,37940.0,37938.0,0.39118438]
[1643959504189,0.34532898,37940.0,37938.0,0.39029639]
[1643959504386,0.34532898,37940.0,37938.0,0.39118438]
[1643959504586,0.22565399,37942.0,37938.0,0.39118438]
[1643959504787,0.346625,37941.0,37939.0,0.05]
[1643959504986,0.22565399,37942.0,37939.0,0.05]
[1643959505587,0.346625,37941.0,37939.0,0.05045958]
[1643959505786,0.346625,37941.0,37939.0,0.00045958]
[1643959505986,0.57227899,37941.0,37939.0,0.00045958]
[1643959506587,0.57227899,37941.0,37938.0,0.42269244]
[1643959506890,0.22565399,37942.0,37938.0,0.48905703]
[1643959507287,0.57227899,37941.0,37938.0,0.48905703]
[1643959507488,0.22565399,37941.0,37939.0,0.05]
[1643959507942,0.28206749,37944.0,37939.0,0.05]
[1643959507943,0.22565399,37942.0,37939.0,0.05]
[1643959508141,0.22565399,37942.0,37938.0,0.16514659]
[1643959508344,0.346625,37941.0,37938.0,0.16514659]
[1643959508843,0.34571511,37940.0,37938.0,0.16420905]
[1643959509042,0.34571511,37940.0,37938.0,0.16514659]
[1643959509243,0.17207888,37942.0,37938.0,0.16514659]
[1643959509846,0.51870888,37942.0,37941.0,0.26893581]
[1643959510345,0.17207888,37942.0,37941.0,0.36893581]
[1643959510946,0.49928549,37943.0,37940.0,0.00093417]
[1643959511247,0.34663,37942.0,37937.0,0.15]
[1643959511499,0.34663,37942.0,37940.0,0.00093417]
[1643959512089,0.34663,37942.0,37940.0,0.31252308]
[1643959512489,0.34663,37942.0,37940.0,0.31158891]
[1643959513492,0.28206749,37943.0,37940.0,0.31158891]
[1643959513891,0.28206749,37944.0,37940.0,0.31158891]
[1643959514790,0.34663,37943.0,37940.0,0.31158891]
[1643959515238,0.34663,37943.0,37940.0,0.3125233]
[1643959515440,0.28206749,37944.0,37940.0,0.3125233]
[1643959515841,0.28206749,37944.0,37941.0,0.34663]
[1643959516241,0.28206749,37944.0,37941.0,0.34756439]
[1643959516441,0.28206749,37944.0,37941.0,0.00093439]
[1643959516645,0.28212474,37944.0,37942.0,0.34663]
[1643959517042,0.28212474,37944.0,37942.0,0.05]
[1643959517247,0.28212474,37944.0,37943.0,0.34663]
[1643959517742,0.28212474,37944.0,37942.0,0.05]
[1643959517944,0.28212474,37944.0,37941.0,0.10093436]
[1643959518142,0.28212474,37944.0,37941.0,0.05093436]